bitfinex/quotes_SOLUSD_20240714
["timestamp","ask_amount","ask_price","bid_price","bid_amount"]
[1720960517373,38.0975,144.45,144.32,16.5396]
[1720960517654,45.0,144.44,144.32,16.5396]
[1720960518456,45.0,144.44,144.33,1.38516474]
[1720960518654,6.9249,144.41,144.37,6.9265]
[1720960518851,45.0,144.44,144.38,6.9258]
[1720960519055,45.0,144.44,144.32,16.5396]
[1720960519252,45.0,144.44,144.33,1.38516492]
[1720960519447,6.9255,144.4,144.35,6.9274]
[1720960519656,6.9255,144.4,144.32,16.5396]
[1720960519855,6.9255,144.4,144.33,1.38516501]
[1720960520364,6.9248,144.41,144.36,6.9267]
[1720960520559,6.9243,144.42,144.38,6.9261]
[1720960525652,6.9253,144.4,144.35,6.9272]
[1720960525853,6.9253,144.4,144.36,6.9269]
[1720960528850,6.9247,144.41,144.37,6.9265]
[1720960530057,45.0,144.44,144.32,16.5396]
[1720960530263,6.9248,144.41,144.37,6.9265]
[1720960531666,6.9243,144.42,144.37,6.9265]
[1720960532367,6.9249,144.41,144.37,6.9265]
[1720960532665,6.9281,144.34,144.32,16.5396]
[1720960532884,44.3369,144.39,144.3,6.9299]
[1720960533057,65.79,144.38,144.3,6.9299]
[1720960533246,6.9276,144.35,144.3,6.9299]
[1720960533451,45.0,144.34,144.3,6.9299]
[1720960533670,51.9284,144.34,144.29,6.9304]
[1720960535650,6.9274,144.36,144.3,1.38605213]
[1720960535862,6.9274,144.36,144.28,15.1738]
[1720960536563,6.9274,144.36,144.32,6.9289]
[1720960536768,6.9267,144.37,144.32,6.9289]
[1720960537273,51.9271,144.36,144.32,6.9289]
[1720960538475,6.9271,144.36,144.32,6.9289]
[1720960539385,6.9264,144.38,144.33,1.38570014]
[1720960539556,44.3325,144.42,144.32,6.9289]
[1720960539557,6.9266,144.37,144.32,6.9289]
[1720960539761,6.9259,144.39,144.3,6.1266]
[1720960539978,6.9259,144.39,144.34,6.928]
[1720960540380,6.9263,144.38,144.33,6.9284]
[1720960542664,6.9274,144.36,144.31,6.929]
[1720960543578,6.9276,144.35,144.31,6.929]
[1720960544169,6.9272,144.36,144.31,6.929]
[1720960544368,6.928,144.34,144.28,15.1738]
[1720960545068,38.1034,144.4,144.28,15.1738]
[1720960545274,6.9277,144.35,144.3,6.9296]
[1720960545470,38.1066,144.38,144.3,6.9298]
[1720960545676,51.928,144.34,144.3,6.9298]
[1720960547475,6.928,144.34,144.3,6.9298]
[1720960550399,6.9278,144.35,144.31,6.9293]
[1720960551993,17.3166,144.38,144.28,15.1738]
[1720960553502,6.9277,144.35,144.31,6.9294]
[1720960553884,6.9281,144.34,144.28,15.1738]
[1720960554077,6.9281,144.34,144.29,6.9303]
[1720960554506,6.9281,144.34,144.3,6.9299]
[1720960555479,45.0,144.37,144.28,15.1738]
[1720960555677,6.9269,144.37,144.33,6.9283]
[1720960556004,6.9264,144.38,144.34,6.9279]
[1720960561391,17.3127,144.41,144.35,16.067]
[1720960561595,6.9257,144.39,144.35,22.9945]
[1720960561900,45.0,144.4,144.35,16.067]
[1720960562595,6.9261,144.38,144.35,16.067]
[1720960565711,45.0,144.4,144.36,1.385429]
[1720960565908,6.9258,144.39,144.36,1.385429]
[1720960566093,6.9258,144.39,144.3,15.0352]
[1720960566094,38.1047,144.39,144.3,15.0352]
[1720960566294,65.79,144.38,144.3,15.0352]
[1720960566620,6.9287,144.33,144.3,15.0352]
[1720960567238,38.107,144.37,144.3,15.0352]
[1720960567239,20.79,144.37,144.3,15.0352]
[1720960567505,6.9312,144.28,144.26,15.0352]
[1720960567706,6.9302,144.3,144.26,15.0352]
[1720960567917,6.9295,144.31,144.26,15.0352]
[1720960568498,6.9287,144.33,144.26,15.0352]
[1720960568803,6.9287,144.33,144.28,6.9308]
[1720960569408,70.76862859,144.36,144.29,6.93]
[1720960569607,6.9284,144.34,144.3,6.9298]
[1720960569991,51.9286,144.33,144.28,6.9306]
[1720960570194,6.9286,144.33,144.28,6.9306]
[1720960571330,6.9286,144.33,144.29,6.9304]
[1720960571495,6.9282,144.34,144.29,6.9304]
[1720960571696,51.9288,144.33,144.28,6.9308]
[1720960571913,6.9288,144.33,144.28,6.9308]
[1720960572112,45.0,144.32,144.29,6.9302]
[1720960572319,6.9282,144.34,144.26,15.0352]
[1720960572618,45.0,144.33,144.26,15.0352]
[1720960572917,45.0,144.33,144.28,6.9305]
[1720960573215,45.0,144.33,144.26,15.0352]
[1720960573216,6.9287,144.33,144.29,6.9304]
[1720960573397,45.0,144.32,144.29,6.9304]
[1720960575515,27.718,144.35,144.3,6.9299]
[1720960575717,45.0,144.34,144.3,6.9299]
[1720960575904,51.9282,144.34,144.3,6.9299]
[1720960576108,51.9282,144.34,144.29,6.9304]
[1720960576623,45.0,144.34,144.26,15.0352]
[1720960576809,65.79,144.35,144.29,6.9303]
[1720960577796,6.9286,144.33,144.26,15.0352]
[1720960578107,45.0,144.32,144.26,15.0352]
[1720960579038,51.929,144.32,144.28,6.9309]
[1720960579321,45.0,144.32,144.26,15.0352]
[1720960580708,6.9291,144.32,144.28,6.9309]
[1720960581127,45.0,144.31,144.26,15.0352]
[1720960581432,6.9291,144.32,144.26,15.0352]
[1720960581638,6.9297,144.31,144.26,15.0352]
[1720960581998,45.0,144.3,144.26,15.0352]
[1720960582615,45.0,144.3,144.27,6.9314]
[1720960583332,6.9289,144.33,144.28,6.9308]
[1720960583506,45.0,144.32,144.28,6.9308]
[1720960583707,51.9294,144.32,144.27,6.9314]
[1720960585807,6.9298,144.31,144.27,6.9314]
[1720960586012,45.0,144.3,144.26,15.0352]
[1720960586319,20.79,144.34,144.26,15.0352]
[1720960586521,6.9298,144.31,144.26,21.967]
[1720960588033,45.0,144.33,144.26,21.967]
[1720960588034,6.929,144.32,144.27,6.9309]
[1720960588333,51.9297,144.31,144.26,21.967]
[1720960588639,45.0,144.3,144.27,6.9314]
[1720960589047,51.93,144.3,144.22,15.5539]
[1720960589926,6.9305,144.29,144.22,15.5539]
[1720960590118,45.0,144.28,144.22,15.5539]
[1720960590317,6.5098,144.32,144.23,1.38630463]
[1720960590635,6.93,144.3,144.26,6.9319]
[1720960590820,45.0,144.31,144.27,6.9312]
[1720960591232,45.0,144.31,144.26,6.9317]
[1720960592633,6.9301,144.3,144.26,6.9317]
[1720960593826,6.9301,144.3,144.23,1.38630463]
[1720960594017,6.9301,144.3,144.25,6.932]
[1720960595533,0.44977206,144.34,144.25,6.932]
[1720960595534,0.44977206,144.34,144.3,6.9298]
[1720960595736,2.22520948,144.36,144.31,1.38593754]
[1720960595943,6.9265,144.38,144.33,6.9285]
[1720960596316,6.5098,144.4,144.28,1.38571961]
[1720960596557,6.9257,144.39,144.34,6.928]
[1720960597237,6.9252,144.4,144.35,6.9273]
[1720960597465,6.9258,144.39,144.36,15.5539]
[1720960599020,27.03511985,144.42,144.31,6.3963]
[1720960599021,6.9261,144.38,144.32,15.5539]
[1720960599222,6.9261,144.38,144.34,6.928]
[1720960600142,27.03511985,144.42,144.36,6.9268]
[1720960600143,6.9247,144.41,144.36,6.9268]
[1720960600314,51.9253,144.4,144.36,6.9268]
[1720960601022,51.9253,144.4,144.35,6.9275]
[1720960601221,45.0,144.4,144.32,15.5539]
[1720960601423,6.9261,144.39,144.33,6.9285]
[1720960601826,6.9265,144.38,144.33,6.9285]
[1720960602555,45.0,144.37,144.32,15.5539]
[1720960602762,6.9276,144.35,144.31,6.929]
[1720960603040,45.0,144.34,144.31,6.929]
[1720960607234,45.0,144.34,144.3,6.9299]
[1720960607834,6.9276,144.35,144.31,6.9293]
[1720960608629,45.0,144.34,144.29,15.5539]
[1720960608828,17.318,144.36,144.29,15.5539]
[1720960608829,45.0,144.35,144.29,15.5539]
[1720960609439,6.9281,144.34,144.3,6.93]
[1720960611028,6.9275,144.36,144.31,6.9291]
[1720960611242,2.79653374,144.38,144.32,6.9286]
[1720960611243,6.9267,144.37,144.32,6.9286]
[1720960611429,6.9274,144.36,144.32,6.9286]
[1720960611821,6.9276,144.35,144.29,15.5539]
[1720960612247,6.9276,144.35,144.31,6.9291]
[1720960612461,44.34631985,144.42,144.29,15.5539]
[1720960612625,23.55631985,144.42,144.3,1.38552947]
[1720960612827,23.55631985,144.42,144.33,6.9284]
[1720960612828,6.9265,144.38,144.33,6.9284]
[1720960613648,6.9265,144.38,144.34,8.3134505]
[1720960613931,6.9265,144.38,144.34,6.9279]
[1720960614342,6.926,144.39,144.34,6.928]
[1720960615657,6.9262,144.38,144.34,6.928]
[1720960615833,6.9266,144.37,144.29,15.5539]
[1720960616363,6.9262,144.38,144.34,6.9279]
[1720960617348,6.9262,144.38,144.33,6.9285]
[1720960617537,6.9268,144.37,144.33,6.9285]
[1720960617946,6.9273,144.36,144.32,6.929]
[1720960618155,6.9284,144.34,144.29,15.5539]
[1720960618529,6.9276,144.35,144.3,8.31532303]
[1720960618729,6.9276,144.35,144.3,6.9295]
[1720960618946,51.9283,144.34,144.3,6.9295]
[1720960619153,6.9283,144.34,144.3,6.9295]
[1720960619653,6.9283,144.34,144.3,8.31538835]
[1720960619846,6.9283,144.34,144.3,6.9295]
[1720960620635,38.106,144.38,144.29,15.5539]
[1720960620636,6.9286,144.33,144.29,15.5539]
[1720960621249,6.6283,144.36,144.29,15.5539]
[1720960621438,51.9277,144.35,144.3,6.9296]
[1720960622569,45.0,144.35,144.29,22.4843]
[1720960622879,6.9286,144.33,144.29,22.4843]
[1720960624360,45.0,144.35,144.29,22.4843]
[1720960624361,6.9282,144.34,144.3,6.9298]
[1720960624544,45.0,144.33,144.3,6.9298]
[1720960624949,6.9282,144.34,144.3,6.9298]
[1720960628067,6.9282,144.34,144.29,15.5539]
[1720960628068,51.9285,144.33,144.29,22.4843]
[1720960628643,45.0,144.33,144.29,15.5539]
[1720960629044,51.9287,144.33,144.29,22.4843]
[1720960634264,45.0,144.33,144.3,6.9297]
[1720960634461,6.9281,144.34,144.3,6.9297]
[1720960638590,2.73017045,144.37,144.29,15.5539]
[1720960638892,6.9277,144.35,144.31,6.9292]
[1720960640272,6.9273,144.36,144.32,6.9289]
[1720960640465,9.65687045,144.37,144.32,6.9289]
[1720960640666,6.9262,144.38,144.33,8.3140451]
[1720960640990,8.51344165,144.39,144.34,23.4147]
[1720960641288,6.9261,144.39,144.34,23.4147]
[1720960641656,6.9263,144.38,144.34,23.4147]
[1720960643563,2.73017045,144.41,144.35,1.38545665]
[1720960643759,6.9255,144.4,144.35,6.9274]
[1720960643958,6.9255,144.4,144.36,6.9271]
[1720960645864,6.9248,144.41,144.37,8.31171443]
[1720960646279,6.9248,144.41,144.37,6.9265]
[1720960647278,6.9243,144.42,144.37,6.9265]
[1720960647857,6.9238,144.43,144.39,6.9256]
[1720960648054,6.9245,144.42,144.35,6.6576]
[1720960649678,6.9245,144.42,144.37,6.9265]
[1720960650475,6.9245,144.42,144.38,6.9261]
[1720960653267,2.73017045,144.45,144.39,17.21957764]
[1720960653581,9.65297045,144.45,144.4,6.9248]
[1720960654264,6.9235,144.44,144.39,24.14517764]
[1720960654868,6.4185,144.43,144.35,15.8345]
[1720960655066,6.9269,144.37,144.35,15.8345]
[1720960655271,38.1523,144.41,144.35,15.8345]
[1720960655494,65.84,144.4,144.32,6.9289]
[1720960655771,6.9263,144.38,144.32,6.9289]
[1720960655968,6.9267,144.37,144.31,22.764]
[1720960656175,51.9267,144.37,144.31,22.764]
[1720960656375,6.9267,144.37,144.31,22.764]
[1720960659386,45.0,144.36,144.31,22.764]
[1720960659702,45.0,144.36,144.28,6.6576]
[1720960659703,6.9276,144.35,144.19,258.7]
[1720960659874,65.84,144.36,144.27,15.8345]
[1720960659875,45.0,144.34,144.27,15.8345]
[1720960660068,65.84,144.36,144.27,15.8345]
[1720960660577,6.9281,144.34,144.27,15.8345]
[1720960660783,45.0,144.33,144.27,15.8345]
[1720960664095,6.9281,144.34,144.27,15.8345]
[1720960664280,6.9298,144.31,144.24,15.8345]
[1720960664880,51.9302,144.3,144.25,6.9322]
[1720960668697,45.0,144.3,144.24,15.8345]
[1720960668904,6.3314,144.31,144.24,15.8345]
[1720960669492,6.9305,144.29,144.24,6.9325]
[1720960669701,20.84,144.3,144.21,15.9224]
[1720960669993,27.7704,144.3,144.21,15.9224]
[1720960670300,6.3314,144.31,144.23,6.9331]
[1720960670301,6.931,144.28,144.23,6.9331]
[1720960670602,45.0,144.27,144.23,6.9331]
[1720960671609,6.9305,144.29,144.24,6.9325]
[1720960671779,45.0,144.28,144.24,6.9325]
[1720960673016,45.0,144.28,144.21,15.9224]
[1720960673305,45.0,144.29,144.21,15.9224]
[1720960674586,45.0,144.29,144.26,6.9318]
[1720960676509,6.3314,144.31,144.27,6.9309]
[1720960676707,6.3314,144.31,144.21,15.9224]
[1720960676708,45.0,144.3,144.21,15.9224]
[1720960678585,51.9301,144.3,144.26,6.9317]
[1720960678889,45.0,144.3,144.26,6.9317]
[1720960679195,45.0,144.3,144.27,6.9314]
[1720960679505,9.65585557,144.34,144.3,6.9297]
[1720960679685,6.9285,144.33,144.23,22.4448]
[1720960679894,6.9285,144.33,144.24,1.38613635]
[1720960680094,6.9285,144.33,144.29,6.9304]
[1720960681110,6.9285,144.33,144.23,22.4448]
[1720960682105,6.9285,144.33,144.24,1.38607765]
[1720960683609,6.9285,144.33,144.28,6.9308]
[1720960684188,6.9285,144.33,144.29,6.9304]
[1720960684400,9.65585557,144.34,144.29,22.8528]
[1720960684602,6.9282,144.34,144.29,22.8528]
[1720960686917,17.317,144.37,144.29,15.9224]
[1720960687122,2.72765557,144.38,144.3,1.38590325]
[1720960687320,6.9272,144.36,144.29,22.3604]
[1720960688212,6.9267,144.37,144.32,6.9289]
[1720960688401,2.72765557,144.38,144.32,6.9289]
[1720960688909,2.72765557,144.38,144.29,22.3604]
[1720960688910,6.9275,144.36,144.31,6.9295]
[1720960689110,6.9275,144.36,144.32,6.929]
[1720960689609,9.65425557,144.38,144.33,6.9285]
[1720960690190,9.65425557,144.38,144.34,6.9278]
[1720960690392,6.9266,144.38,144.34,6.9278]
[1720960691293,3.95007539,144.39,144.29,22.3604]
[1720960691504,3.95007539,144.39,144.31,6.929]
[1720960691505,6.9271,144.36,144.31,6.929]
[1720960691695,6.9267,144.37,144.32,6.9286]
[1720960691899,6.9271,144.36,144.32,6.9286]
[1720960692103,6.9271,144.36,144.31,6.9294]
[1720960693506,6.9277,144.35,144.31,6.9294]
[1720960694414,24.79007539,144.39,144.31,6.9294]
[1720960694612,6.9272,144.36,144.32,6.9287]
[1720960694795,6.9276,144.35,144.31,6.9294]
[1720960694996,6.9282,144.34,144.3,6.9299]
[1720960695400,6.9277,144.35,144.3,6.9299]
[1720960696218,6.9277,144.35,144.31,6.9292]
[1720960698223,6.9269,144.37,144.32,6.9287]
[1720960699007,6.9271,144.36,144.32,6.9287]
[1720960700903,6.9277,144.35,144.31,6.9293]
[1720960701310,27.3324,144.34,144.24,15.6865]
[1720960701618,45.0,144.33,144.24,15.6865]
[1720960702520,6.9301,144.3,144.26,6.9315]
[1720960702828,6.9296,144.31,144.26,6.9315]
[1720960703925,6.9296,144.31,144.27,6.9311]
[1720960704128,65.84,144.33,144.24,15.6865]
[1720960704340,20.84,144.3,144.24,15.6865]
[1720960704626,6.931,144.28,144.24,15.6865]
[1720960705243,6.931,144.28,144.23,6.9332]
[1720960705530,45.0,144.27,144.23,6.9332]
[1720960706323,45.0,144.27,144.21,15.6865]
[1720960706324,6.9319,144.26,144.21,15.6865]
[1720960706626,45.0,144.25,144.21,15.6865]
[1720960707123,6.9314,144.27,144.21,15.6865]
[1720960707327,16.666,144.33,144.21,15.6865]
[1720960707629,45.0,144.32,144.21,15.6865]
[1720960708022,48.95007539,144.32,144.21,15.6865]
[1720960708423,6.9309,144.29,144.21,15.6865]
[1720960708629,6.9309,144.29,144.25,6.9323]
[1720960708927,6.9309,144.29,144.23,6.9333]
[1720960708928,6.9314,144.28,144.23,6.9333]
[1720960709228,6.9302,144.3,144.24,6.9325]
[1720960710015,6.9309,144.29,144.24,6.9325]
[1720960710219,20.84,144.3,144.24,6.9325]
[1720960710414,6.9316,144.27,144.22,6.9335]
[1720960711933,6.9321,144.26,144.21,15.6865]
[1720960712308,6.9328,144.25,144.21,15.6865]
[1720960716232,6.9318,144.27,144.21,15.6865]
[1720960716410,6.9318,144.27,144.22,6.9337]
[1720960716610,6.9319,144.26,144.22,6.9337]
[1720960718031,6.9315,144.27,144.22,6.9337]
[1720960720029,6.9319,144.26,144.22,6.9337]
[1720960723516,6.9324,144.25,144.21,15.6865]
[1720960723751,6.9324,144.25,144.21,22.6206]
[1720960724247,6.932,144.26,144.21,22.6206]
[1720960724621,6.932,144.26,144.22,6.9337]
[1720960729853,20.84,144.3,144.23,6.933]
[1720960730153,20.84,144.3,144.21,15.6865]
[1720960730154,6.9318,144.27,144.22,6.9336]
[1720960736250,6.931,144.28,144.23,1.38651814]
[1720960736451,6.931,144.28,144.24,6.9324]
[1720960737381,6.9305,144.29,144.25,6.9323]
[1720960737869,6.93,144.3,144.27,16.5929]
[1720960740972,6.9306,144.29,144.27,16.5929]
[1720960741271,6.9296,144.31,144.27,16.5929]
[1720960742575,6.9296,144.31,144.27,23.5242]
[1720960743376,6.9294,144.32,144.27,23.5242]
[1720960743665,6.9294,144.32,144.28,8.31682951]
[1720960743862,6.9294,144.32,144.28,6.9308]
[1720960744267,6.9296,144.31,144.27,23.5242]
[1720960745277,6.9292,144.32,144.28,6.9308]
[1720960745575,6.9289,144.33,144.28,8.31675699]
[1720960745786,6.9289,144.33,144.28,6.9308]
[1720960746677,6.9291,144.32,144.28,6.9308]
[1720960748855,6.9286,144.33,144.29,6.9304]
[1720960750072,6.67839372,144.36,144.3,1.38588753]
[1720960750269,6.67839372,144.36,144.28,1.38573607]
[1720960750452,20.03324203,144.4,144.28,1.38573607]
[1720960750655,26.71163575,144.4,144.28,1.38573607]
[1720960750857,23.99179372,144.4,144.3,22.2089]
[1720960752269,47.50729574,144.4,144.3,22.2089]
[1720960752657,6.9275,144.36,144.3,22.2089]
[1720960752853,50.18279776,144.4,144.31,6.9291]
[1720960753060,6.9269,144.37,144.33,6.9285]
[1720960753369,6.9271,144.36,144.32,6.9289]
[1720960754169,6.9265,144.38,144.33,6.9284]
[1720960754368,45.0,144.37,144.33,6.9284]
[1720960755068,45.0,144.37,144.3,22.2089]
[1720960755069,6.9258,144.39,144.34,6.9279]
[1720960755262,6.9267,144.37,144.33,6.9284]
[1720960757185,6.9262,144.38,144.34,6.928]
[1720960757362,6.9268,144.37,144.33,6.9284]
[1720960757759,6.9262,144.38,144.34,6.928]
[1720960757973,6.9262,144.38,144.3,22.2089]
[1720960758170,6.9262,144.38,144.33,6.9284]
[1720960759372,6.9267,144.37,144.33,6.9284]
[1720960760287,6.67839372,144.4,144.34,6.9279]
[1720960760585,45.0,144.39,144.34,6.9279]
[1720960761385,45.0,144.39,144.33,6.9284]
[1720960762478,6.9266,144.37,144.33,6.9284]
[1720960766406,6.67839372,144.4,144.34,15.05]
[1720960766599,6.9253,144.4,144.36,6.927]
[1720960766772,6.9253,144.4,144.37,1.38521266]
[1720960767278,6.9251,144.41,144.37,1.38521266]
[1720960768990,6.9251,144.41,144.37,8.31181266]
[1720960771678,6.9224,144.46,144.41,6.9242]
[1720960772602,6.9224,144.46,144.42,6.9242]
[1720960773878,6.9228,144.45,144.38,15.05]
[1720960774289,6.9235,144.44,144.4,6.925]
[1720960775490,6.9225,144.46,144.41,6.9244]
[1720960776504,6.9225,144.46,144.42,6.9241]
[1720960776681,0.8617212,144.48,144.38,15.05]
[1720960777481,6.9222,144.47,144.43,6.9235]
[1720960777985,0.8617212,144.48,144.38,15.05]
[1720960778199,7.7834212,144.48,144.44,6.9231]
[1720960778407,0.8617212,144.48,144.38,15.05]
[1720960778878,7.7830212,144.48,144.44,6.9232]
[1720960783606,45.0,144.47,144.38,15.05]
[1720960784501,65.84,144.47,144.38,15.05]
[1720960784687,6.9239,144.43,144.38,15.05]
[1720960784884,6.9232,144.45,144.41,6.9245]
[1720960787710,45.0,144.47,144.38,15.05]
[1720960788404,45.0,144.47,144.39,1.38496689]
[1720960788605,45.0,144.47,144.38,15.05]
[1720960788606,6.9235,144.44,144.38,15.05]
[1720960789717,6.9235,144.44,144.39,1.3849658]
[1720960790223,6.9235,144.44,144.38,15.05]
[1720960790712,6.9235,144.44,144.39,1.38496519]
[1720960791024,6.9229,144.45,144.39,1.38496519]
[1720960791989,6.9229,144.45,144.38,15.05]
[1720960792915,6.9229,144.45,144.39,1.38496523]
[1720960793603,6.9229,144.45,144.38,15.05]
[1720960794114,6.9229,144.45,144.39,1.38496553]
[1720960794410,6.922,144.47,144.38,15.05]
[1720960797113,51.9223,144.46,144.38,15.05]
[1720960797299,0.8617212,144.48,144.38,15.05]
[1720960797300,6.923,144.45,144.38,15.05]
[1720960800004,45.8617212,144.48,144.39,1.38489976]
[1720960800920,6.9226,144.46,144.39,1.38489976]
[1720960801100,6.9228,144.45,144.38,15.05]
[1720960801716,6.9228,144.45,144.39,1.38479876]
[1720960802616,6.9223,144.46,144.39,1.38479876]
[1720960803222,6.9229,144.45,144.38,15.05]
[1720960803718,6.9234,144.44,144.38,15.05]
[1720960803906,6.9234,144.44,144.39,1.38494492]
[1720960804100,6.9229,144.45,144.39,1.38494492]
[1720960804509,6.9233,144.44,144.38,15.05]
[1720960804703,6.9227,144.46,144.39,1.38495519]
[1720960805304,6.9227,144.46,144.38,15.05]
[1720960806009,51.9229,144.45,144.38,15.05]
[1720960806209,6.9229,144.45,144.38,15.05]
[1720960806525,45.0,144.44,144.38,15.05]
[1720960806725,6.9233,144.44,144.38,15.05]
[1720960808009,6.9227,144.46,144.38,15.05]
[1720960808210,45.0,144.45,144.38,15.05]
[1720960808417,45.0,144.45,144.39,1.38496343]
[1720960809427,6.9229,144.45,144.39,1.38496343]
[1720960809731,6.9229,144.45,144.38,15.05]
[1720960810335,6.9224,144.46,144.38,15.05]
[1720960810528,6.9219,144.47,144.38,15.05]
[1720960810920,6.9223,144.46,144.38,15.05]
[1720960811707,6.9223,144.46,144.39,1.38485427]
[1720960812329,6.9223,144.46,144.4,1.3848541]
[1720960812536,6.9223,144.46,144.39,1.38485285]
[1720960812937,6.9223,144.46,144.38,15.05]
[1720960813432,6.9228,144.45,144.38,15.05]
[1720960815025,6.9235,144.44,144.38,15.05]
[1720960818334,0.8617212,144.48,144.39,1.38498919]
[1720960818720,45.8617212,144.48,144.39,1.38498919]
[1720960819315,6.9228,144.45,144.39,1.38498919]
[1720960819751,6.9228,144.45,144.38,21.6692]
[1720960820150,6.9223,144.46,144.38,21.6692]
[1720960820440,6.9223,144.46,144.39,1.38481597]
[1720960820619,6.9223,144.46,144.4,1.38475268]
[1720960821728,6.9223,144.46,144.39,16.4794]
[1720960821943,6.9223,144.46,144.4,1.38471492]
[1720960822145,0.8617212,144.48,144.4,1.38471492]
[1720960822335,7.7834212,144.48,144.41,16.4794]
[1720960823255,7.7834212,144.48,144.42,1.38455719]
[1720960823452,7.7834212,144.48,144.43,1.38455591]
[1720960823834,7.7834212,144.48,144.41,16.4794]
[1720960824165,7.7834212,144.48,144.42,1.38455666]
[1720960824949,0.8617212,144.48,144.41,16.4794]
[1720960825157,0.8617212,144.48,144.42,1.38445778]
[1720960825342,0.8617212,144.48,144.41,16.4794]
[1720960826323,6.9219,144.47,144.41,16.4794]
[1720960826557,6.9219,144.47,144.42,1.38466825]
[1720960827432,6.9219,144.47,144.41,16.4794]
[1720960828153,7.7831212,144.48,144.42,1.38466957]
[1720960828755,6.9226,144.46,144.41,16.4794]
[1720960829752,6.9228,144.45,144.41,16.4794]
[1720960829952,6.9224,144.46,144.41,16.4794]
[1720960830450,65.84,144.45,144.38,16.4691]
[1720960831354,6.9245,144.42,144.38,16.4691]
[1720960831659,45.0,144.41,144.38,16.4691]
[1720960833757,20.84,144.46,144.38,16.4691]
[1720960833959,65.84,144.45,144.38,16.4691]
[1720960834437,6.9237,144.43,144.38,16.4691]
[1720960834633,45.0,144.42,144.38,16.4691]
[1720960836538,6.9237,144.43,144.38,16.4691]
[1720960839538,6.9233,144.44,144.38,16.4691]
[1720960840547,6.9229,144.45,144.38,16.4691]
[1720960840948,20.84,144.44,144.38,16.4691]
[1720960841133,45.0,144.43,144.38,16.4691]
[1720960841855,6.9246,144.42,144.38,16.4691]
[1720960843062,45.0,144.43,144.38,16.4691]
[1720960843454,6.9228,144.45,144.38,16.4691]
[1720960843657,45.0,144.44,144.38,16.4691]
[1720960844356,6.9228,144.45,144.38,16.4691]
[1720960844661,6.9228,144.45,144.39,1.38497306]
[1720960844966,2.87467437,144.47,144.39,1.38497306]
[1720960845266,7.4787212,144.48,144.38,16.4691]
[1720960846461,45.0,144.47,144.39,6.6463]
[1720960846658,6.9224,144.46,144.39,6.6463]
[1720960850551,6.9224,144.46,144.4,1.38486299]
[1720960851561,6.9224,144.46,144.39,6.6463]
[1720960851742,6.9224,144.46,144.4,1.38476229]
[1720960852359,6.922,144.47,144.41,15.0664]
[1720960852556,6.922,144.47,144.42,1.38463732]
[1720960852756,0.8617212,144.48,144.41,15.0664]
[1720960854649,6.9228,144.45,144.41,15.0664]
[1720960855050,6.9225,144.46,144.41,15.0664]
[1720960855578,6.9219,144.47,144.41,15.0664]
[1720960855767,0.8617212,144.48,144.41,15.0664]
[1720960856678,6.9223,144.46,144.41,15.0664]
[1720960859972,6.9228,144.45,144.41,15.0664]
[1720960860153,6.9239,144.43,144.35,6.6463]
[1720960860460,6.9239,144.43,144.36,15.0664]
[1720960861270,6.9233,144.44,144.36,15.0664]
[1720960861568,45.0,144.43,144.36,15.0664]
[1720960862155,45.0,144.43,144.37,1.38516776]